{"text_format":"3","workbook":"xlsx","n_sheets":5,"sheets":["Equipos Requeridos","Mto Salón Concejo","Mto Sala de Prensa","Doc y Capac.","TOTAL"],"read":"whole","date_system":"1900"}

{"sheet":"Equipos Requeridos","index":0,"n_rows":30,"n_cols":8,"rows_kept":30,"merged":[[0,0,0,7],[1,0,1,7],[17,0,17,7]]}
[]
["SUMINISTRO DE EQUIPOS Y ELEMENTOS"]
["Item","Cantidad","Unidad","Referencia","Marca","Descripción","Vr. Unitario","Vr. Total"]
[1,1,"UND","SRG A12","SONY","Cámara PTZ con NDI.",{"v":0,"d":"$ 0"},{"$f":"G4*B4","v":{"v":0,"d":"$ 0"}}]
[2,1,"UND","BRC WMZ330","SONY","Soporte de cielo o muro.",{"v":0,"d":"$ 0"},{"$f":"G5*B5","v":{"v":0,"d":"$ 0"}}]
[3,2,"UND","D-XLR2","RDL","Wall Plate con XLR Hembra y uno Macho.",{"v":0,"d":"$ 0"},{"v":0,"d":"$ 0"}]
[4,2,"UND","AV-HK1X","RDL","\"HUM KILLER” Audio Isolation Transformer XLR.",{"v":0,"d":"$ 0"},{"v":0,"d":"$ 0"}]
[5,2,"UND","SMB-1W","RDL","Surface Mount Boxes para D-XLR2",{"v":0,"d":"$ 0"},{"v":0,"d":"$ 0"}]
[6,2,"UND","CP-1","RDL","Single Cover Plate para D-XLR2",{"v":0,"d":"$ 0"},{"v":0,"d":"$ 0"}]
[7,80,"MTS","222C-SH-GRY","Liberty","Cable Balanceado de señal 3x22.",{"v":0,"d":"$ 0"},{"v":0,"d":"$ 0"}]
[8,1,"UND","iPad Air 256GB","APPLE","Tablet de 11 pulgadas con Licencia CUE. Con M2.",{"v":0,"d":"$ 0"},{"v":0,"d":"$ 0"}]
[9,1,"UND","Elgato 4K o similar","Elgato o similar","Tarjeta Capturadora USB 4K",{"v":0,"d":"$ 0"},{"v":0,"d":"$ 0"}]
[10,1,"UND","RE3ND76","Electrovoice","Micrófono Inalámbrico Profesional",{"v":0,"d":"$ 0"},{"v":0,"d":"$ 0"}]
[{"$nulls":6},"SUBTOTAL",{"$f":"SUM(H4:H13)","v":{"v":0,"d":"$ 0"}}]
[{"$nulls":6},"IVA",{"$f":"H14*19%","v":{"v":0,"d":"$ 0"}}]
[{"$nulls":6},"TOTAL",{"$f":"H14+H15","v":{"v":0,"d":"$ 0"}}]
[]
["INSTALACIÓN Y CONFIGURACIÓN DE EQUIPOS Y ELEMENTOS"]
["Item","Cantidad","Unidad","Referencia","Marca","Descripción","Vr. Unitario","Vr. Total"]
[1,1,"UND","SRG A12","SONY","Instalación Cámara PTZ con NDI.",{"v":0,"d":"$ 0"},{"$f":"G20*B20","v":{"v":0,"d":"$ 0"}}]
[2,1,"UND","BRC WMZ330","SONY","Instalación Soporte de cielo o muro.",{"v":0,"d":"$ 0"},{"$f":"G21*B21","v":{"v":0,"d":"$ 0"}}]
[3,2,"UND","D-XLR2","RDL","Instalación Wall Plate con XLR Hembra y uno Macho.",{"v":0,"d":"$ 0"},{"v":0,"d":"$ 0"}]
[4,80,"MTS","222C-SH-GRY","Liberty","Instalación Cable Balanceado de señal 3x22.",{"v":0,"d":"$ 0"},{"v":0,"d":"$ 0"}]
[5,2,"UND","PROVEEDOR",null,"Instalación Caja Directa.",{"v":0,"d":"$ 0"},{"v":0,"d":"$ 0"}]
[6,8,"UND","PROVEEDOR",null,"Ponchado Conectores.",{"v":0,"d":"$ 0"},{"v":0,"d":"$ 0"}]
[7,1,"UND","PROVEEDOR",null,"Programación protocolo NDI en Cámara",{"v":0,"d":"$ 0"},{"v":0,"d":"$ 0"}]
[8,1,"UND","PROVEEDOR",null,"Puesta a punto y realización de ajustes finales, con verificación funcional de los nuevos elementos a través de pruebas de video, audio y control automatizado.",{"v":0,"d":"$ 0"},{"v":0,"d":"$ 0"}]
[{"$nulls":6},"SUBTOTAL",{"$f":"SUM(H20:H27)","v":{"v":0,"d":"$ 0"}}]
[{"$nulls":6},"IVA",{"$f":"H28*19%","v":{"v":0,"d":"$ 0"}}]
[{"$nulls":6},"TOTAL",{"$f":"H28+H29","v":{"v":0,"d":"$ 0"}}]

{"sheet":"Mto Salón Concejo","index":1,"n_rows":7,"n_cols":6,"rows_kept":7,"merged":[[0,0,0,5],[2,2,3,2]]}
["MANTENIMIENTO SALÓN CONCEJO DE GOBIERNO"]
["Item","Cantidad","Referencia","Descripción","Vr. Unitario","Vr. Total"]
[1,1,"N/A","Mantenimiento Preventivo del Sistema Existente:\nLimpieza de equipos en rack y periféricos, revisión de conexiones y aislamiento de ruidos, revisión de altavoces en Concejo de Gobierno, verificación de cableado general.",{"v":0,"d":"$ 0"},{"$f":"E3*B3","v":{"v":0,"d":"$ 0"}}]
[2,1,null,"Mejoras y Ajustes en Programación del Sistema AV:\nCambio de códigos fuente (CSS 1000 y CUE), Ajustes en automatización, Corrección de retardo AV, Configuración del procesador de audio.",{"v":0,"d":"$ 0"},{"$f":"E4*B4","v":{"v":0,"d":"$ 0"}}]
[{"$nulls":4},"SUBTOTAL",{"$f":"SUM(F3:F4)","v":{"v":0,"d":"$ 0"}}]
[{"$nulls":4},"IVA",{"$f":"F5*19%","v":{"v":0,"d":"$ 0"}}]
[{"$nulls":4},"TOTAL",{"$f":"F5+F6","v":{"v":0,"d":"$ 0"}}]

{"sheet":"Mto Sala de Prensa","index":2,"n_rows":7,"n_cols":6,"rows_kept":7,"merged":[[0,0,0,5],[2,2,3,2]]}
["MANTENIMIENTO SALA DE PRENSA"]
["Item","Cantidad","Referencia","Descripción","Vr. Unitario","Vr. Total"]
[1,1,"N/A","Mantenimiento preventivo en altavoces, Verificación de cableado general,Detección de desgaste físico o mala instalación,\nincluyendo habilitación de puntos de conexión AV previamente deshabilitados",{"v":0,"d":"$ 0"},{"$f":"E3*B3","v":{"v":0,"d":"$ 0"}}]
[2,1,null,"Mejoras y Ajustes en Programación del Sistema AV, Ajustes en automatización, Corrección de retardo AV, Configuración del procesador de audio.",{"v":0,"d":"$ 0"},{"$f":"E4*B4","v":{"v":0,"d":"$ 0"}}]
[{"$nulls":4},"SUBTOTAL",{"$f":"SUM(F3:F4)","v":{"v":0,"d":"$ 0"}}]
[{"$nulls":4},"IVA",{"$f":"F5*19%","v":{"v":0,"d":"$ 0"}}]
[{"$nulls":4},"TOTAL",{"$f":"F5+F6","v":{"v":0,"d":"$ 0"}}]

{"sheet":"Doc y Capac.","index":3,"n_rows":7,"n_cols":6,"rows_kept":7,"merged":[[0,0,0,5],[2,2,3,2]]}
["DOCUMENTACIÓN TÉCNICA Y CAPACITACIÓN"]
["Item","Cantidad","Referencia","Descripción","Vr. Unitario","Vr. Total"]
[1,1,"N/A","Informe detallado del proceso: Documento que describe paso a paso las actividades\nrealizadas, hallazgos técnicos, configuraciones aplicadas y recomendaciones futuras.\nInforme con Ingeniería de detalle: Registro detallado de la arquitectura actualizada del\nsistema AV (mapas de conexión, parámetros y ajustes).",{"v":0,"d":"$ 0"},{"$f":"E3*B3","v":{"v":0,"d":"$ 0"}}]
[2,1,null,"Capacitación técnica avanzada: Formación práctica al personal designado, orientada al\nmanejo de cámaras, tablet de control, automatización CUE y solución de incidentes. Incluye\nrevisión de hallazgos de la visita técnica previa",{"v":0,"d":"$ 0"},{"$f":"E4*B4","v":{"v":0,"d":"$ 0"}}]
[{"$nulls":4},"SUBTOTAL",{"$f":"SUM(F3:F4)","v":{"v":0,"d":"$ 0"}}]
[{"$nulls":4},"IVA",{"$f":"F5*19%","v":{"v":0,"d":"$ 0"}}]
[{"$nulls":4},"TOTAL",{"$f":"F5+F6","v":{"v":0,"d":"$ 0"}}]

{"sheet":"TOTAL","index":4,"n_rows":8,"n_cols":5,"rows_kept":8,"merged":[[1,3,1,4]]}
[]
[{"$nulls":3},"TOTAL MANTENIMIENTOS Y SUMINISTROS"]
[{"$nulls":3},"SUMINISTRO DE EQUIPOS Y ELEMENTOS",{"$f":"'Equipos Requeridos'!H16","v":{"v":0,"d":"$ 0"}}]
[{"$nulls":3},"INSTALACIÓN Y CONFIGURACIÓN DE EQUIPOS Y ELEMENTOS",{"$f":"'Equipos Requeridos'!H30","v":{"v":0,"d":"$ 0"}}]
[{"$nulls":3},"MANTENIMIENTO SALÓN CONCEJO DE GOBIERNO",{"$f":"'Mto Salón Concejo'!F7","v":{"v":0,"d":"$ 0"}}]
[{"$nulls":3},"MANTENIMIENTO SALA DE PRENSA",{"$f":"'Mto Sala de Prensa'!F7","v":{"v":0,"d":"$ 0"}}]
[{"$nulls":3},"DOCUMENTACIÓN TÉCNICA Y CAPACITACIÓN",{"$f":"'Doc y Capac.'!F7","v":{"v":0,"d":"$ 0"}}]
[{"$nulls":3},"TOTAL",{"$f":"SUM(E3:E7)","v":{"v":0,"d":"$ 0"}}]